fUSD/lending_fUSD_20250116
["ID","MTS","AMOUNT","RATE_DAILY","PERIOD"]
[349175161,1737010253512,-500.0,0.00043499,25]
[349175162,1737010253522,-500.0,0.00043499,25]
[349175163,1737010253531,-500.0,0.00043499,25]
[349175164,1737010253541,-500.0,0.00043499,25]
[349175165,1737010253552,-500.0,0.00043499,25]
[349175166,1737010253562,-500.0,0.00043499,25]
[349175167,1737010253573,-500.0,0.00043499,25]
[349175168,1737010253582,-483.12835736,0.00043499,25]
[349175169,1737010253603,-16.87164264,0.00043499,25]
[349175170,1737010253614,-500.0,0.00043499,25]
[349175171,1737010253624,-500.0,0.00043499,25]
[349175172,1737010253633,-500.0,0.00043499,25]
[349175173,1737010253643,-500.0,0.00043499,25]
[349175174,1737010253652,-500.0,0.00043499,25]
[349175175,1737010253662,-500.0,0.00043499,25]
[349175176,1737010253672,-500.0,0.00043499,25]
[349175177,1737010253682,-500.0,0.00043499,25]
[349175178,1737010253692,-500.0,0.00043499,25]
[349175179,1737010253702,-500.0,0.00043499,25]
[349175180,1737010253716,-500.0,0.00043499,25]
[349175181,1737010253725,-500.0,0.00043499,25]
[349175182,1737010253735,-500.0,0.00043499,25]
[349175183,1737010253744,-366.13906203,0.00043499,25]
[349175184,1737010253754,-151.0,0.00043499,14]
[349175185,1737010253764,-152.284095,0.00043499,14]
[349175186,1737010253775,-500.0,0.00043499,25]
[349175187,1737010253785,-500.0,0.00043499,25]
[349175188,1737010253795,-235.7688759,0.00043499,25]
[349175189,1737010253804,-490.66412547,0.00043499,25]
[349175190,1737010253814,-417.75,0.00043499,25]
[349175191,1737010253824,-500.0,0.00043499,25]
[349175192,1737010253833,-500.0,0.00043499,25]
[349175193,1737010253843,-500.0,0.00043499,25]
[349175194,1737010253853,-500.0,0.00043499,25]
[349175195,1737010253863,-500.0,0.00043499,25]
[349175196,1737010253872,-500.0,0.00043499,25]
[349175197,1737010253882,-500.0,0.00043499,25]
[349175198,1737010253891,-500.0,0.00043499,25]
[349175199,1737010253900,-500.0,0.00043499,25]
[349175200,1737010253910,-407.4516171,0.00043499,25]
[349175201,1737010253919,-500.0,0.00043499,7]
[349175202,1737010253929,-500.0,0.00043499,25]
[349175203,1737010253938,-152.122212,0.00043499,14]
[349175204,1737010253948,-500.0,0.00043499,25]
[349175205,1737010253957,-500.0,0.00043499,25]
[349175206,1737010253967,-500.0,0.00043499,25]
[349175207,1737010253976,-500.0,0.00043499,25]
[349175208,1737010253985,-500.0,0.00043499,25]
[349175209,1737010253995,-500.0,0.00043499,25]
[349175210,1737010254004,-500.0,0.00043499,25]
[349175211,1737010254014,-537.36191235,0.00043499,25]
[349175212,1737010254023,-500.0,0.00043499,25]
[349175213,1737010254032,-500.0,0.00043499,25]
[349175214,1737010254042,-500.0,0.00043499,25]
[349175215,1737010254052,-500.0,0.00043499,25]
[349175216,1737010254062,-500.0,0.00043499,25]
[349175217,1737010254071,-500.0,0.00043499,25]
[349175218,1737010254081,-500.0,0.00043499,25]
[349175219,1737010254091,-280.3,0.00043499,25]
[349175220,1737010254100,-575.30183744,0.00043499,25]
[349175221,1737010254116,-61.33713067,0.00043499,25]
[349175222,1737010254126,-160.01,0.00043499,25]
[349175223,1737010254136,-151.11155,0.00043499,14]
[349175224,1737010254146,-500.0,0.00043499,25]
[349175225,1737010254155,-265.82335582,0.00043499,25]
[349175226,1737010254168,-234.17664418,0.00043499,25]
[349175227,1737010254178,-500.0,0.00043499,25]
[349175228,1737010254187,-259.96791983,0.00043499,25]
[349175229,1737010254199,-240.03208017,0.00043499,25]
[349175230,1737010254209,-500.0,0.00043499,25]
[349175231,1737010254218,-382.43023104,0.00043499,25]
[349175232,1737010254231,-117.56976896,0.00043499,25]
[349175233,1737010254241,-420.28025114,0.00043499,25]
[349175234,1737010254252,-418.08,0.00043499,25]
[349175235,1737010254261,-308.69,0.00043499,25]
[349175236,1737010254271,-607.12,0.00043499,25]
[349175237,1737010254281,-151.0,0.00043499,14]
[349175238,1737010254291,-151.0,0.00043499,14]
[349175239,1737010254301,-151.0,0.00043499,14]
[349175240,1737010254311,-151.0,0.00043499,14]
[349175241,1737010254320,-249.778684,0.00043499,14]
[349175242,1737010254330,-151.0,0.00043499,14]
[349175243,1737010254340,-190.335502,0.00043499,14]
[349175244,1737010254350,-500.0,0.00043499,25]
[349175245,1737010254360,-500.0,0.00043499,25]
[349175246,1737010254370,-397.78488722,0.00043499,25]
[349175247,1737010254380,-500.0,0.00043499,25]
[349175248,1737010254390,-151.0,0.00043499,14]
[349175249,1737010254400,-272.052087,0.00043499,14]
[349175250,1737010254409,-500.0,0.00043499,120]
[349175251,1737010254419,-355.37510794,0.00043499,25]
[349175252,1737010254429,-500.0,0.00043499,25]
[349175253,1737010254440,-548.36,0.00043499,25]
[349175254,1737010254449,-500.0,0.00043499,25]
[349175255,1737010254459,-151.0,0.00043499,14]
[349175256,1737010254469,-106.49080648,0.00043499,14]
[349175257,1737010254483,-44.50919352,0.00043499,14]
[349175258,1737010254492,-151.0,0.00043499,14]
[349175259,1737010254502,-151.0,0.00043499,14]
[349175260,1737010254512,-151.0,0.00043499,14]
[349175261,1737010254522,-500.0,0.00043499,25]
[349175262,1737010254531,-201.89080648,0.00043499,25]
[349175263,1737010254544,-298.10919352,0.00043499,25]
[349175264,1737010254554,-500.0,0.00043499,25]
[349175265,1737010254563,-500.0,0.00043499,25]
[349175266,1737010254573,-500.0,0.00043499,25]
[349175267,1737010254582,-317.2,0.00043499,25]
[349175268,1737010254591,-151.0,0.00043499,14]
[349175269,1737010254601,-151.1421,0.00043499,14]
[349175270,1737010254611,-500.0,0.00043499,25]
[349175271,1737010254620,-151.0,0.00043499,14]
[349175272,1737010254629,-151.0,0.00043499,14]
[349175273,1737010254639,-151.0,0.00043499,14]
[349175274,1737010254648,-151.0,0.00043499,14]
[349175275,1737010254658,-151.0,0.00043499,14]
[349175276,1737010254667,-151.0,0.00043499,14]
[349175277,1737010254676,-151.0,0.00043499,14]
[349175278,1737010254686,-151.0,0.00043499,14]
[349175279,1737010254695,-151.0,0.00043499,14]
[349175280,1737010254705,-166.604703,0.00043499,14]
[349175281,1737010254719,-151.0,0.00043499,14]
[349175282,1737010254728,-69.24734918,0.00043499,14]
[349175283,1737010254741,-82.22692582,0.00043499,14]
[349175284,1737010254751,-567.9,0.00043499,25]
[349175285,1737010254762,-118.08682189,0.00043499,25]
[349175286,1737010254773,-449.81317811,0.00043499,25]
[349175287,1737010254784,-567.9,0.00043499,25]
[349175288,1737010254793,-567.9,0.00043499,25]
[349175289,1737010254803,-567.9,0.00043499,25]
[349175290,1737010254813,-567.9,0.00043499,25]
[349175291,1737010254823,-567.9,0.00043499,25]
[349175292,1737010254832,-567.9,0.00043499,25]
[349175293,1737010254844,-567.9,0.00043499,25]
[349175294,1737010254854,-567.9,0.00043499,25]
[349175295,1737010254864,-567.9,0.00043499,25]
[349175296,1737010254874,-567.9,0.00043499,25]
[349175297,1737010254884,-567.9,0.00043499,25]
[349175298,1737010254894,-567.9,0.00043499,25]
[349175299,1737010254904,-567.9,0.00043499,25]
[349175300,1737010254914,-567.9,0.00043499,25]
[349175301,1737010254923,-567.9,0.00043499,25]
[349175302,1737010254933,-568.02427642,0.00043499,25]
[349175303,1737010254942,-500.0,0.00043499,25]
[349175304,1737010254952,-500.0,0.00043499,25]
[349175305,1737010254961,-500.0,0.00043499,25]
[349175306,1737010254971,-500.0,0.00043499,25]
[349175307,1737010254980,-500.0,0.00043499,25]
[349175308,1737010254990,-500.0,0.00043499,25]
[349175309,1737010255000,-500.0,0.00043499,25]
[349175310,1737010255010,-500.0,0.00043499,25]
[349175311,1737010255020,-500.0,0.00043499,25]
[349175312,1737010255030,-500.0,0.00043499,25]
[349175313,1737010255040,-500.0,0.00043499,25]
[349175314,1737010255050,-500.0,0.00043499,25]
[349175315,1737010255059,-500.0,0.00043499,25]
[349175316,1737010255069,-500.0,0.00043499,25]
[349175317,1737010255079,-500.0,0.00043499,25]
[349175318,1737010255089,-500.0,0.00043499,25]
[349175319,1737010255098,-500.0,0.00043499,25]
[349175320,1737010255108,-500.0,0.00043499,25]
[349175321,1737010255117,-500.0,0.00043499,25]
[349175322,1737010255127,-500.0,0.00043499,25]
[349175323,1737010255136,-500.0,0.00043499,25]
[349175324,1737010255147,-500.0,0.00043499,25]
[349175325,1737010255156,-264.9108162,0.00043499,25]
[349175326,1737010255166,-500.0,0.00043499,25]
[349175327,1737010255175,-500.0,0.00043499,25]
[349175328,1737010255185,-500.0,0.00043499,25]
[349175329,1737010255195,-500.0,0.00043499,25]
[349175330,1737010255204,-500.0,0.00043499,25]
[349175331,1737010255214,-247.28,0.00043499,25]
[349175332,1737010255224,-500.0,0.00043499,25]
[349175333,1737010255234,-500.0,0.00043499,25]
[349175334,1737010255244,-370.2783505,0.00043499,25]
[349175335,1737010255253,-151.0,0.00043499,14]
[349175336,1737010255263,-500.0,0.00043499,25]
[349175337,1737010255272,-151.0,0.00043499,14]
[349175338,1737010255282,-500.0,0.00043499,25]
[349175339,1737010255291,-500.0,0.00043499,25]
[349175340,1737010255301,-151.0,0.00043499,14]
[349175341,1737010255310,-500.0,0.00043499,25]
[349175342,1737010255320,-151.0,0.00043499,14]
[349175343,1737010255330,-500.0,0.00043499,25]
[349175344,1737010255340,-151.0,0.00043499,14]
[349175345,1737010255349,-500.0,0.00043499,25]
[349175346,1737010255360,-500.0,0.00043499,25]
[349175347,1737010255369,-151.0,0.00043499,14]
[349175348,1737010255379,-500.0,0.00043499,25]
[349175349,1737010255388,-500.0,0.00043499,25]
[349175350,1737010255398,-500.0,0.00043499,25]
[349175351,1737010255407,-500.0,0.00043499,25]
[349175352,1737010255417,-500.0,0.00043499,25]
[349175353,1737010255427,-500.0,0.00043499,25]
[349175354,1737010255437,-500.0,0.00043499,25]
[349175355,1737010255447,-500.0,0.00043499,25]
[349175356,1737010255456,-355.27,0.00043499,25]
[349175357,1737010255467,-520.49,0.00043499,25]
[349175358,1737010255476,-520.49,0.00043499,25]
[349175359,1737010255486,-520.49,0.00043499,25]
[349175360,1737010255496,-520.49,0.00043499,25]
[349175361,1737010255505,-520.49,0.00043499,25]
[349175362,1737010255515,-520.49,0.00043499,25]
[349175363,1737010255628,-520.49,0.00043499,25]
[349175364,1737010255638,-520.49,0.00043499,25]
[349175365,1737010255648,-520.49,0.00043499,25]
[349175366,1737010255658,-520.49,0.00043499,25]
[349175367,1737010255667,-520.49,0.00043499,25]
[349175368,1737010255677,-520.49,0.00043499,25]
[349175369,1737010255686,-386.28928801,0.00043499,25]
[349175370,1737010255695,-520.49,0.00043499,25]
[349175371,1737010255706,-520.49,0.00043499,25]
[349175372,1737010255716,-520.49,0.00043499,25]
[349175373,1737010255724,-103.52490364,0.00043499,25]
[349175376,1737010990581,1000.0,0.00023,120]
[349175379,1737011238242,-339.91389293,0.000399,2]
[349175380,1737011249094,-883.81504928,0.000397,2]
[349175385,1737011431999,-308.82305,0.000398,2]
[349175386,1737011432008,-191.17695,0.000399,2]
[349175387,1737011432023,-772.85588876,0.000399,2]
[349175388,1737011432032,-4601.06276743,0.0004,120]
[349175389,1737011432114,-503.1,0.0004,120]
[349175390,1737011432127,-3189.83723257,0.0004,120]
[349175391,1737011432136,-1000.0,0.0004,120]
[349175392,1737011432146,-543.22,0.00040033,2]
[349175393,1737011432158,-1000.0,0.00041,120]
[349175394,1737011432167,-155.189,0.0004132,2]
[349175395,1737011432177,-200.0,0.000414,2]
[349175396,1737011432187,-477.64,0.00041539,120]
[349175397,1737011432196,-4059.0,0.0004192,117]
[349175398,1737011432206,-1450.791,0.0004192,62]
[349175399,1737011432216,-828.55,0.00042074,2]
[349175400,1737011432225,-250.0,0.00042074,2]
[349175401,1737011432234,-940.9004,0.000421,2]
[349175402,1737011432244,-208.88376291,0.000421,14]
[349175403,1737011432254,-500.0,0.00042173,2]
[349175404,1737011432264,-1000.0,0.0004218,2]
[349175405,1737011432274,-224.37,0.0004218,2]
[349175406,1737011432284,-10000.0,0.0004218,2]
[349175407,1737011432293,-676.19,0.0004219,2]
[349175408,1737011432303,-676.19,0.0004219,2]
[349175409,1737011432313,-676.19,0.0004219,2]
[349175410,1737011432323,-676.19,0.0004219,2]
[349175411,1737011432332,-676.19,0.0004219,2]
[349175412,1737011432342,-5619.75228135,0.000422,120]
[349175413,1737011432354,-93399.99999314,0.000422,120]
[349175414,1737011432366,-484.61911431,0.000422,120]
[349175415,1737011432382,-366.03,0.000422,120]
[349175416,1737011432393,-788.5,0.000422,120]
[349175417,1737011432409,-3125.1,0.000422,120]
[349175418,1737011432421,-522.63906166,0.000422,120]
[349175419,1737011432432,-992.84,0.000422,120]
[349175420,1737011432447,-17629.60426389,0.000422,120]
[349175421,1737011432517,-417.98026338,0.000422,120]
[349175909,1737011437971,-5176.23854981,0.000422,120]
[349175911,1737011437983,-1046.10858418,0.000422,120]
[349175913,1737011437995,-3012.89422543,0.000422,120]
[349175923,1737011438078,-121744.37973004,0.000422,120]
[349175943,1737011438279,-618.49444355,0.000422,120]
[349175945,1737011438291,-9255.93517147,0.000422,120]
[349176125,1737011440167,-13445.80590325,0.000422,120]
[349176142,1737011440436,-796.21466456,0.000422,120]
[349176145,1737011440449,-777.12919889,0.000422,120]
[349176412,1737011443015,-3630.14560904,0.000422,120]
[349176428,1737011443114,-342.08199988,0.000422,120]
[349176432,1737011443127,-382.54066526,0.000422,120]
[349176435,1737011443139,-7122.38477161,0.000422,120]
[349176459,1737011443272,-379.500005,0.000422,120]
[349176461,1737011443285,-2107.10044256,0.000422,120]
[349176463,1737011443296,-14868.01321538,0.000422,120]
[349176466,1737011443318,-79822.0,0.000422,120]
[349176468,1737011443329,-40610.02573051,0.000422,120]
[349176469,1737011443357,-664.44684323,0.000422,120]
[349176483,1737011446030,-106125.86885789,0.000422,120]
[349176484,1737011446154,-315.5451,0.000422,120]
[349176485,1737011446167,-851.49333391,0.000422,120]
[349176486,1737011446187,-385.0,0.000422,120]
[349176487,1737011446199,-4570.15335518,0.000422,120]
[349176488,1737011446220,-609.25355676,0.000422,120]
[349176489,1737011446233,-48012.86546136,0.000422,120]
[349176490,1737011446243,-34815.79233598,0.000422,2]
[349176491,1737011446256,-540.441375,0.000422,2]
[349176492,1737011446267,-394.72,0.000422,2]
[349176493,1737011446279,-853.05,0.000422,2]
[349176494,1737011446291,-704.82880413,0.000422,2]
[349176495,1737011446303,-1216.1,0.000422,2]
[349176496,1737011446347,-6564.65842087,0.000422,2]
[349176497,1737011446362,-105.18498652,0.000422,2]
[349176498,1737011446372,-543.22,0.00042297,2]
[349176499,1737011446382,-252.4,0.00042312,2]
[349176500,1737011446392,-1374.16,0.00042312,2]
[349176501,1737011446402,-250.0,0.00042359,120]
[349176502,1737011446412,-250.0,0.00042367,2]
[349176503,1737011446422,-4444.1,0.00042367,2]
[349176504,1737011446431,-300.0,0.00042448,2]
[349176505,1737011446442,-370.85,0.00042477,120]
[349176506,1737011446452,-833.74,0.0004256,2]
[349176507,1737011446462,-500.0,0.00042721,2]
[349176508,1737011446472,-909.41,0.00042739,120]
[349176509,1737011446482,-362.27423069,0.000429,9]
[349176510,1737011446491,-500.0,0.00043013,25]
[349176512,1737011446501,-500.0,0.00043013,25]
[349176514,1737011446510,-500.0,0.00043013,25]
[349176516,1737011446520,-510.38136374,0.00043013,25]
[349176517,1737011446530,-500.0,0.00043013,25]
[349176518,1737011446539,-500.0,0.00043013,25]
[349176519,1737011446550,-500.0,0.00043013,25]
[349176520,1737011446559,-500.0,0.00043013,25]
[349176521,1737011446569,-500.0,0.00043013,25]
[349176522,1737011446579,-431.89039264,0.00043013,25]
[349176523,1737011446588,-500.0,0.00043013,25]
[349176524,1737011446598,-500.0,0.00043013,25]
[349176525,1737011446608,-500.0,0.00043013,25]
[349176526,1737011446618,-500.0,0.00043013,25]
[349176527,1737011446628,-535.32,0.00043013,25]
[349176528,1737011446637,-500.0,0.00043013,25]
[349176529,1737011446647,-635.14,0.00043013,25]
[349176530,1737011446657,-506.79423674,0.00043013,25]
[349176531,1737011446667,-500.0,0.00043013,25]
[349176532,1737011446677,-500.0,0.00043013,25]
[349176533,1737011446687,-500.0,0.00043013,25]
[349176534,1737011446696,-500.0,0.00043013,25]
[349176535,1737011446706,-500.0,0.00043013,25]
[349176536,1737011446715,-22.12957551,0.00043013,25]
[349176537,1737011446728,-477.87042449,0.00043013,25]
[349176538,1737011446738,-500.0,0.00043013,25]
[349176539,1737011446748,-500.0,0.00043013,25]
[349176540,1737011446758,-503.80691748,0.00043013,25]
[349176541,1737011446768,-502.64247574,0.00043013,25]
[349176542,1737011446778,-500.0,0.00043013,25]
[349176543,1737011446788,-500.0,0.00043013,25]
[349176544,1737011446798,-500.0,0.00043013,25]
[349176545,1737011446812,-500.0,0.00043013,25]
[349176546,1737011446822,-500.0,0.00043013,25]
[349176547,1737011446832,-500.0,0.00043013,25]
[349176548,1737011446842,-561.28,0.00043013,25]
[349176549,1737011446852,-500.0,0.00043013,25]
[349176550,1737011446861,-500.0,0.00043013,25]
[349176551,1737011446871,-500.0,0.00043013,25]
[349176552,1737011446881,-500.0,0.00043013,25]
[349176553,1737011446891,-500.0,0.00043013,25]
[349176554,1737011446901,-500.0,0.00043013,25]
[349176555,1737011446910,-622.55188142,0.00043013,25]
[349176556,1737011446922,-500.0,0.00043013,25]
[349176557,1737011446932,-500.0,0.00043013,25]
[349176558,1737011446942,-500.0,0.00043013,25]
[349176559,1737011446953,-500.0,0.00043013,25]
[349176560,1737011446963,-500.0,0.00043013,25]
[349176561,1737011446974,-500.0,0.00043013,25]
[349176562,1737011446984,-500.0,0.00043013,25]
[349176563,1737011446994,-500.0,0.00043013,25]
[349176564,1737011447004,-531.57038923,0.00043013,25]
[349176565,1737011447014,-500.0,0.00043013,25]
[349176566,1737011447023,-272.924417,0.00043013,25]
[349176567,1737011447033,-500.0,0.00043013,25]
[349176568,1737011447043,-500.0,0.00043013,25]
[349176569,1737011447053,-500.0,0.00043013,25]
[349176570,1737011447063,-500.0,0.00043013,25]
[349176571,1737011447073,-500.0,0.00043013,25]
[349176572,1737011447085,-500.0,0.00043013,25]
[349176573,1737011447097,-545.46,0.00043013,2]
[349176574,1737011447107,-500.0,0.00043013,25]
[349176575,1737011447116,-500.0,0.00043013,25]
[349176576,1737011447127,-253.44,0.00043013,25]
[349176577,1737011447137,-500.0,0.00043013,25]
[349176578,1737011447146,-604.16,0.00043013,25]
[349176579,1737011447156,-500.0,0.00043013,25]
[349176580,1737011447167,-534.66,0.00043013,25]
[349176581,1737011447182,-500.0,0.00043013,25]
[349176582,1737011447192,-409.65,0.00043013,25]
[349176583,1737011447202,-632.75,0.00043013,25]
[349176584,1737011447211,-500.0,0.00043013,25]
[349176585,1737011447221,-358.0,0.00043013,25]
[349176586,1737011447232,-500.0,0.00043013,25]
[349176587,1737011447242,-384.41,0.00043013,25]
[349176588,1737011447252,-500.0,0.00043013,25]
[349176589,1737011447262,-500.0,0.00043013,25]
[349176590,1737011447272,-500.0,0.00043013,25]
[349176591,1737011447281,-500.0,0.00043013,25]
[349176592,1737011447291,-187.5,0.00043013,25]
[349176593,1737011447301,-500.0,0.00043013,25]
[349176594,1737011447457,-500.0,0.00043013,25]
[349176595,1737011447505,-311.86,0.00043013,25]
[349176596,1737011447552,-500.0,0.00043013,25]
[349176597,1737011447600,-500.0,0.00043013,25]
[349176598,1737011447650,-500.0,0.00043013,25]
[349176599,1737011447682,-444.3209431,0.00043013,25]
[349176600,1737011447693,-500.0,0.00043013,25]
[349176601,1737011447705,-504.06365845,0.00043013,25]
[349176602,1737011447716,-500.0,0.00043013,25]
[349176603,1737011447727,-500.0,0.00043013,25]
[349176604,1737011447738,-500.0,0.00043013,25]
[349176605,1737011447748,-430.82743348,0.00043013,25]
[349176606,1737011447758,-500.0,0.00043013,25]
[349176607,1737011447769,-500.0,0.00043013,25]
[349176608,1737011447780,-500.0,0.00043013,25]
[349176609,1737011447791,-225.375131,0.00043013,25]
[349176610,1737011447801,-225.375131,0.00043013,25]
[349176611,1737011447811,-500.0,0.00043013,25]
[349176612,1737011447822,-500.0,0.00043013,25]
[349176613,1737011447832,-500.0,0.00043013,25]
[349176614,1737011447843,-1322.8,0.00043013,25]
[349176615,1737011447854,-1322.8,0.00043013,25]
[349176616,1737011447864,-500.0,0.00043013,25]
[349176617,1737011447879,-500.0,0.00043013,25]
[349176618,1737011447889,-500.0,0.00043013,25]
[349176619,1737011447899,-500.0,0.00043013,25]
[349176620,1737011447910,-500.0,0.00043013,25]
[349176621,1737011447922,-500.0,0.00043013,25]
[349176622,1737011447933,-500.0,0.00043013,25]
[349176623,1737011447943,-500.0,0.00043013,25]
[349176624,1737011447954,-500.0,0.00043013,25]
[349176625,1737011447965,-500.0,0.00043013,25]
[349176626,1737011447975,-558.16264644,0.00043013,25]
[349176627,1737011447985,-500.0,0.00043013,25]
[349176628,1737011447996,-569.09213755,0.00043013,25]
[349176629,1737011448006,-500.0,0.00043013,25]
[349176630,1737011448016,-500.0,0.00043013,25]
[349176631,1737011448026,-500.0,0.00043013,25]
[349176632,1737011448037,-500.0,0.00043013,2]
[349176633,1737011448047,-500.0,0.00043013,25]
[349176634,1737011448058,-500.0,0.00043013,25]
[349176635,1737011448068,-709.14,0.00043013,25]
[349176636,1737011448079,-709.14,0.00043013,25]
[349176637,1737011448093,-500.0,0.00043013,25]
[349176638,1737011448104,-500.0,0.00043013,25]
[349176639,1737011448116,-500.0,0.00043013,25]
[349176640,1737011448127,-500.0,0.00043013,25]
[349176641,1737011448138,-500.0,0.00043013,25]
[349176642,1737011448148,-500.0,0.00043013,25]
[349176643,1737011448160,-500.0,0.00043013,25]
[349176644,1737011448172,-500.0,0.00043013,25]
[349176645,1737011448182,-500.0,0.00043013,25]
[349176646,1737011448192,-500.0,0.00043013,25]
[349176647,1737011448203,-500.0,0.00043013,25]
[349176648,1737011448212,-500.0,0.00043013,25]
[349176649,1737011448223,-500.0,0.00043013,25]
[349176650,1737011448233,-500.0,0.00043013,25]
[349176651,1737011448244,-500.0,0.00043013,25]
[349176652,1737011448254,-500.0,0.00043013,25]
[349176653,1737011448264,-500.0,0.00043013,25]
[349176654,1737011448274,-500.0,0.00043013,25]
[349176655,1737011448284,-500.0,0.00043013,25]
[349176656,1737011448294,-500.0,0.00043013,25]
[349176657,1737011448304,-500.0,0.00043013,25]
[349176658,1737011448315,-1028.58,0.00043013,25]
[349176659,1737011448324,-1028.58,0.00043013,25]
[349176660,1737011448335,-500.0,0.00043013,25]
[349176661,1737011448344,-500.0,0.00043013,25]
[349176662,1737011448355,-500.0,0.00043013,25]
[349176663,1737011448365,-500.0,0.00043013,25]
[349176664,1737011448375,-500.0,0.00043013,25]
[349176665,1737011448384,-500.0,0.00043013,25]
[349176666,1737011448394,-500.0,0.00043013,25]
[349176667,1737011448404,-500.0,0.00043013,25]
[349176668,1737011448414,-500.0,0.00043013,25]
[349176669,1737011448426,-341.06,0.00043013,25]
[349176670,1737011448437,-500.0,0.00043013,25]
[349176671,1737011448448,-500.0,0.00043013,25]
[349176672,1737011448460,-500.0,0.00043013,25]
[349176673,1737011448471,-500.0,0.00043013,25]
[349176674,1737011448482,-500.0,0.00043013,25]
[349176675,1737011448493,-500.0,0.00043013,25]
[349176676,1737011448503,-283.08,0.00043013,25]
[349176677,1737011448514,-500.0,0.00043013,25]
[349176678,1737011448524,-500.0,0.00043013,25]
[349176679,1737011448535,-500.0,0.00043013,25]
[349176680,1737011448546,-500.0,0.00043013,25]
[349176681,1737011448555,-500.0,0.00043013,25]
[349176682,1737011448566,-500.0,0.00043013,25]
[349176683,1737011448576,-500.0,0.00043013,25]
[349176684,1737011448586,-500.0,0.00043013,25]
[349176685,1737011448595,-500.0,0.00043013,25]
[349176686,1737011448605,-500.0,0.00043013,25]
[349176687,1737011448615,-500.0,0.00043013,25]
[349176688,1737011448625,-258.09,0.00043013,25]
[349176689,1737011448636,-751.59,0.00043013,25]
[349176690,1737011448646,-751.59,0.00043013,25]
[349176691,1737011448656,-500.0,0.00043013,25]
[349176692,1737011448666,-500.0,0.00043013,25]
[349176693,1737011448678,-500.0,0.00043013,25]
[349176694,1737011448689,-500.0,0.00043013,25]
[349176695,1737011448700,-500.0,0.00043013,25]
[349176696,1737011448711,-500.0,0.00043013,25]
[349176697,1737011448721,-500.0,0.00043013,25]
[349176698,1737011448731,-500.0,0.00043013,25]
[349176699,1737011448743,-666.99,0.00043013,25]
[349176700,1737011448753,-666.99,0.00043013,25]
[349176701,1737011448762,-500.0,0.00043013,25]
[349176702,1737011448772,-524.25,0.00043013,25]
[349176703,1737011448781,-524.25,0.00043013,25]
[349176704,1737011448791,-500.0,0.00043013,25]
[349176705,1737011448801,-500.0,0.00043013,25]
[349176706,1737011448812,-500.0,0.00043013,25]
[349176707,1737011448822,-500.0,0.00043013,25]
[349176708,1737011448832,-500.0,0.00043013,25]
[349176709,1737011448842,-500.0,0.00043013,25]
[349176710,1737011448852,-500.0,0.00043013,25]
[349176711,1737011448862,-500.0,0.00043013,25]
[349176712,1737011448873,-500.0,0.00043013,25]
[349176713,1737011448882,-500.0,0.00043013,25]